fUSD/lending_fUSD_20251011
["ID","MTS","AMOUNT","RATE_DAILY","PERIOD"]
[390897828,1760203337687,-500.0,0.0003863,30]
[390897829,1760203337726,-1095.07,0.0003863,30]
[390897830,1760203337764,-500.0,0.0003863,30]
[390897831,1760203337801,-500.0,0.0003863,30]
[390897832,1760203337839,-1050.39,0.0003863,30]
[390897833,1760203337878,-637.75,0.0003863,30]
[390897834,1760203337913,-500.0,0.0003863,30]
[390897835,1760203337949,-500.0,0.0003863,30]
[390897836,1760203337984,-293.75104607,0.0003863,30]
[390897837,1760203338020,-500.0,0.0003863,30]
[390897838,1760203338057,-500.0,0.0003863,30]
[390897839,1760203338095,-500.0,0.0003863,30]
[390897840,1760203338137,-1039.38,0.0003863,30]
[390897841,1760203338174,-500.0,0.0003863,30]
[390897842,1760203338210,-500.0,0.0003863,30]
[390897843,1760203338244,-500.0,0.0003863,30]
[390897844,1760203338282,-683.47,0.0003863,30]
[390897845,1760203338319,-500.0,0.0003863,30]
[390897846,1760203338356,-500.0,0.0003863,30]
[390897847,1760203338390,-976.79,0.0003863,30]
[390897848,1760203338424,-500.0,0.0003863,30]
[390897849,1760203338460,-500.0,0.0003863,30]
[390897850,1760203338498,-500.0,0.0003863,30]
[390897851,1760203338533,-500.0,0.0003863,30]
[390897852,1760203338568,-500.0,0.0003863,30]
[390897853,1760203338602,-500.0,0.0003863,30]
[390897854,1760203338636,-500.0,0.0003863,30]
[390897855,1760203338669,-1985.48,0.0003863,30]
[390897856,1760203338708,-1178.25,0.0003863,30]
[390897857,1760203338744,-500.0,0.0003863,30]
[390897858,1760203338781,-640.21,0.0003863,30]
[390897859,1760203338819,-500.0,0.0003863,30]
[390897860,1760203338852,-1830.41,0.0003863,30]
[390897862,1760203338888,-500.0,0.0003863,30]
[390897863,1760203338921,-500.0,0.0003863,30]
[390897864,1760203338955,-801.8,0.0003863,30]
[390897865,1760203338990,-566.23752678,0.0003863,30]
[390897866,1760203339025,-500.0,0.0003863,30]
[390897867,1760203339060,-3591.88,0.0003863,30]
[390897868,1760203339094,-500.0,0.0003863,30]
[390897869,1760203339129,-1022.49,0.0003863,30]
[390897870,1760203339163,-500.0,0.0003863,30]
[390897871,1760203339195,-500.0,0.0003863,30]
[390897872,1760203339227,-500.0,0.0003863,30]
[390897873,1760203339260,-500.0,0.0003863,30]
[390897874,1760203339292,-670.98,0.0003863,30]
[390897875,1760203339328,-500.0,0.0003863,30]
[390897876,1760203339362,-500.0,0.0003863,30]
[390897877,1760203339394,-2322.68,0.0003863,30]
[390897878,1760203339427,-500.0,0.0003863,30]
[390897879,1760203339458,-500.0,0.0003863,30]
[390897880,1760203339658,-500.0,0.0003863,30]
[390897881,1760203339697,-500.0,0.0003863,30]
[390897882,1760203339734,-461.91511608,0.0003863,30]
[390897883,1760203339772,-500.0,0.0003863,30]
[390897884,1760203339808,-500.0,0.0003863,30]
[390897885,1760203339843,-500.0,0.0003863,30]
[390897886,1760203339877,-698.86,0.0003863,30]
[390897887,1760203339912,-788.25,0.0003863,30]
[390897888,1760203339949,-500.0,0.0003863,30]
[390897889,1760203339986,-523.66,0.0003863,30]
[390897890,1760203340021,-500.0,0.0003863,30]
[390897891,1760203340060,-500.0,0.0003863,30]
[390897892,1760203340095,-500.0,0.0003863,30]
[390897893,1760203340128,-500.0,0.0003863,30]
[390897894,1760203340162,-643.44,0.0003863,30]
[390897895,1760203340196,-500.0,0.0003863,30]
[390897896,1760203340230,-669.5,0.0003863,30]
[390897897,1760203340262,-1362.3,0.0003863,30]
[390897898,1760203340298,-500.0,0.0003863,30]
[390897899,1760203340332,-500.0,0.0003863,30]
[390897900,1760203340366,-3858.76,0.0003863,30]
[390897901,1760203340398,-500.0,0.0003863,30]
[390897902,1760203340429,-500.0,0.0003863,30]
[390897903,1760203340461,-736.81,0.0003863,30]
[390897904,1760203340494,-2032.7,0.0003863,30]
[390897905,1760203340526,-500.72363584,0.0003863,30]
[390897906,1760203340558,-500.0,0.0003863,30]
[390897907,1760203340590,-500.0,0.0003863,30]
[390897908,1760203340623,-500.0,0.0003863,30]
[390897909,1760203340655,-500.0,0.0003863,30]
[390897910,1760203340686,-500.0,0.0003863,30]
[390897911,1760203340720,-648.93,0.0003863,30]
[390897912,1760203340753,-710.66,0.0003863,30]
[390897913,1760203340786,-580.97,0.0003863,30]
[390897914,1760203340819,-500.0,0.0003863,30]
[390897915,1760203340850,-500.0,0.0003863,30]
[390897916,1760203340882,-400.63416735,0.0003863,30]
[390897917,1760203340915,-694.39,0.0003863,30]
[390897918,1760203340948,-500.0,0.0003863,30]
[390897919,1760203340984,-789.63,0.0003863,30]
[390897920,1760203341020,-500.0,0.0003863,30]
[390897921,1760203341058,-500.0,0.0003863,30]
[390897922,1760203341093,-500.0,0.0003863,30]
[390897923,1760203341128,-500.0,0.0003863,30]
[390897924,1760203341163,-500.0,0.0003863,30]
[390897925,1760203341198,-500.0,0.0003863,120]
[390897926,1760203341234,-2133.27,0.0003863,30]
[390897927,1760203341272,-1338.87,0.0003863,30]
[390897928,1760203341315,-640.62,0.0003863,30]
[390897929,1760203341354,-1761.97,0.0003863,30]
[390897930,1760203341393,-500.0,0.0003863,30]
[390897931,1760203341430,-500.0,0.0003863,30]
[390897932,1760203341469,-500.0,0.0003863,30]
[390897933,1760203341506,-619.84,0.0003863,30]
[390897934,1760203341541,-500.0,0.0003863,30]
[390897935,1760203341575,-419.24,0.0003863,30]
[390897936,1760203341609,-500.0,0.0003863,30]
[390897937,1760203341644,-1286.23,0.0003863,30]
[390897938,1760203341681,-4201.79,0.0003863,30]
[390897939,1760203341716,-2078.09,0.0003863,30]
[390897940,1760203341749,-500.0,0.0003863,30]
[390897941,1760203341785,-500.0,0.0003863,30]
[390897942,1760203341820,-488.01924514,0.0003863,30]
[390897943,1760203341853,-4876.48,0.0003863,30]
[390897944,1760203341888,-500.0,0.0003863,30]
[390897945,1760203341925,-500.0,0.0003863,30]
[390897946,1760203341967,-500.0,0.0003863,30]
[390897947,1760203342007,-4263.86,0.0003863,30]
[390897948,1760203342049,-500.0,0.0003863,30]
[390897949,1760203342091,-500.0,0.0003863,30]
[390897950,1760203342131,-500.0,0.0003863,30]
[390897951,1760203342172,-500.0,0.0003863,30]
[390897952,1760203342214,-500.0,0.0003863,30]
[390897953,1760203342252,-500.0,0.0003863,30]
[390897954,1760203342291,-500.0,0.0003863,30]
[390897955,1760203342329,-500.0,0.0003863,30]
[390897956,1760203342370,-958.78,0.0003863,30]
[390897957,1760203342411,-1409.3,0.0003863,30]
[390897958,1760203342470,-500.0,0.0003863,30]
[390897959,1760203342521,-500.0,0.0003863,30]
[390897960,1760203342571,-500.0,0.0003863,30]
[390897961,1760203342613,-1600.66,0.0003863,30]
[390897962,1760203342649,-500.0,0.0003863,30]
[390897963,1760203342683,-500.0,0.0003863,30]
[390897964,1760203342719,-1330.15,0.0003863,30]
[390897965,1760203342762,-4055.68,0.0003863,30]
[390897966,1760203342802,-500.0,0.0003863,30]
[390897967,1760203342839,-500.0,0.0003863,30]
[390897968,1760203343270,-2543.85,0.0003863,30]
[390897969,1760203343342,-686.89,0.0003863,30]
[390897970,1760203343384,-1268.82,0.0003863,30]
[390897971,1760203343422,-271.20913459,0.0003863,30]
[390897972,1760203343458,-1298.87,0.0003863,30]
[390897973,1760203343492,-500.0,0.0003863,30]
[390897974,1760203343527,-2386.2,0.0003863,30]
[390897975,1760203343562,-3786.06,0.0003863,30]
[390897976,1760203343596,-500.0,0.0003863,30]
[390897977,1760203343632,-3230.83,0.0003863,30]
[390897978,1760203343667,-981.71,0.0003863,30]
[390897979,1760203343708,-500.0,0.0003863,30]
[390897980,1760203343747,-1896.04,0.0003863,30]
[390897981,1760203343786,-234.84049881,0.0003863,30]
[390897982,1760203343825,-510.13772476,0.0003863,30]
[390897983,1760203343866,-500.0,0.0003863,30]
[390897984,1760203343914,-500.0,0.0003863,30]
[390897985,1760203343955,-500.0,0.0003863,30]
[390897986,1760203343995,-500.0,0.0003863,30]
[390897987,1760203344036,-500.0,0.0003863,30]
[390897988,1760203344075,-1978.84,0.0003863,30]
[390897989,1760203344112,-500.0,0.0003863,30]
[390897990,1760203344152,-500.0,0.0003863,30]
[390897991,1760203344192,-1821.29,0.0003863,30]
[390897992,1760203344230,-2233.27,0.0003863,30]
[390897993,1760203344271,-2885.29,0.0003863,30]
[390897994,1760203344333,-2358.13,0.0003863,30]
[390897995,1760203344378,-500.0,0.0003863,30]
[390897996,1760203344424,-1726.53,0.0003863,30]
[390897997,1760203344475,-539.10715183,0.0003863,30]
[390897998,1760203344525,-533.66,0.0003863,30]
[390897999,1760203344580,-500.0,0.0003863,30]
[390898000,1760203344628,-3478.46,0.0003863,30]
[390898001,1760203344674,-697.79,0.0003863,30]
[390898002,1760203344714,-917.86,0.0003863,30]
[390898003,1760203344754,-500.63597451,0.0003863,30]
[390898004,1760203344794,-3721.1,0.0003863,30]
[390898005,1760203344837,-500.0,0.0003863,30]
[390898006,1760203344885,-931.14,0.0003863,30]
[390898007,1760203344925,-411.95501429,0.0003863,30]
[390898008,1760203344966,-3650.94,0.0003863,30]
[390898009,1760203345007,-1754.49,0.0003863,30]
[390898010,1760203345050,-1373.95,0.0003863,30]
[390898011,1760203345091,-500.0,0.0003863,30]
[390898012,1760203345130,-500.0,0.0003863,30]
[390898013,1760203345170,-614.45,0.0003863,30]
[390898014,1760203345210,-500.0,0.0003863,30]
[390898015,1760203345249,-2848.94,0.0003863,30]
[390898016,1760203345296,-500.0,0.0003863,30]
[390898017,1760203345338,-557.81,0.0003863,30]
[390898018,1760203345379,-500.0,0.0003863,30]
[390898019,1760203345416,-500.0,0.0003863,30]
[390898020,1760203345455,-500.0,0.0003863,30]
[390898021,1760203345491,-1945.22,0.0003863,30]
[390898022,1760203345532,-3881.2,0.0003863,30]
[390898023,1760203345571,-500.0,0.0003863,30]
[390898024,1760203345607,-500.0,0.0003863,30]
[390898025,1760203345643,-303.16280697,0.0003863,30]
[390898026,1760203345678,-2218.86,0.0003863,30]
[390898027,1760203345716,-1440.06,0.0003863,30]
[390898028,1760203345754,-500.0,0.0003863,30]
[390898029,1760203345793,-500.0,0.0003863,30]
[390898030,1760203345830,-500.0,0.0003863,30]
[390898031,1760203345868,-1939.8,0.0003863,30]
[390898032,1760203345906,-500.0,0.0003863,30]
[390898033,1760203345944,-1636.62,0.0003863,30]
[390898034,1760203345983,-500.0,0.0003863,30]
[390898035,1760203346030,-2049.71,0.0003863,30]
[390898036,1760203346084,-500.0,0.0003863,30]
[390898037,1760203346131,-594.52,0.0003863,30]
[390898038,1760203346184,-3638.76,0.0003863,30]
[390898039,1760203346234,-630.28,0.0003863,30]
[390898040,1760203346435,-500.0,0.0003863,30]
[390898041,1760203346474,-3597.42,0.0003863,30]
[390898042,1760203346514,-731.46,0.0003863,30]
[390898043,1760203346550,-1115.37,0.0003863,30]
[390898044,1760203346583,-500.0,0.0003863,30]
[390898045,1760203346623,-2378.64,0.0003863,30]
[390898046,1760203346658,-4241.1,0.0003863,30]
[390898047,1760203346694,-1061.78,0.0003863,30]
[390898048,1760203346731,-3017.93,0.0003863,30]
[390898049,1760203346767,-734.16,0.0003863,30]
[390898050,1760203346804,-500.0,0.0003863,30]
[390898051,1760203346841,-500.0,0.0003863,30]
[390898052,1760203346875,-1653.11,0.0003863,30]
[390898053,1760203346909,-500.0,0.0003863,30]
[390898054,1760203346943,-2495.99,0.0003863,30]
[390898055,1760203346977,-1335.65,0.0003863,30]
[390898056,1760203347013,-500.0,0.0003863,30]
[390898057,1760203347050,-500.0,0.0003863,30]
[390898058,1760203347085,-1292.98,0.0003863,30]
[390898059,1760203347123,-2528.18,0.0003863,30]
[390898060,1760203347158,-751.49,0.0003863,30]
[390898061,1760203347194,-1502.2,0.0003863,30]
[390898062,1760203347231,-500.0,0.0003863,30]
[390898063,1760203347269,-2134.69,0.0003863,30]
[390898064,1760203347310,-500.0,0.0003863,30]
[390898065,1760203347344,-913.17,0.0003863,30]
[390898066,1760203347379,-2061.01,0.0003863,30]
[390898067,1760203347411,-1044.27,0.0003863,30]
[390898068,1760203347444,-500.0,0.0003863,30]
[390898069,1760203347477,-1435.68,0.0003863,30]
[390898070,1760203347510,-1474.22,0.0003863,30]
[390898071,1760203347543,-1465.71,0.0003863,30]
[390898072,1760203347575,-1213.41,0.0003863,30]
[390898073,1760203347607,-500.0,0.0003863,30]
[390898074,1760203347639,-1127.95,0.0003863,30]
[390898075,1760203347671,-2754.77,0.0003863,30]
[390898076,1760203347702,-500.0,0.0003863,30]
[390898077,1760203347736,-4817.98,0.0003863,30]
[390898078,1760203347769,-500.0,0.0003863,30]
[390898079,1760203347804,-500.0,0.0003863,30]
[390898080,1760203347836,-500.0,0.0003863,30]
[390898081,1760203347868,-697.98,0.0003863,30]
[390898082,1760203347901,-500.0,0.0003863,30]
[390898083,1760203347935,-502.06076452,0.0003863,30]
[390898084,1760203347969,-500.0,0.0003863,30]
[390898085,1760203348005,-2423.81,0.0003863,30]
[390898086,1760203348040,-502.60241305,0.0003863,30]
[390898087,1760203348074,-1553.13,0.0003863,30]
[390898088,1760203348108,-500.0,0.0003863,30]
[390898089,1760203348142,-500.0,0.0003863,30]
[390898090,1760203348178,-3840.27,0.0003863,30]
[390898091,1760203348212,-573.81,0.0003863,30]
[390898092,1760203348245,-2996.56,0.0003863,30]
[390898093,1760203348279,-1228.18,0.0003863,30]
[390898094,1760203348320,-671.56,0.0003863,30]
[390898095,1760203348357,-628.00114356,0.0003863,30]
[390898096,1760203348391,-771.75,0.0003863,30]
[390898097,1760203348438,-500.0,0.0003863,30]
[390898098,1760203348476,-2825.61,0.0003863,30]
[390898099,1760203348509,-500.0,0.0003863,30]
[390898100,1760203348544,-775.25,0.0003863,30]
[390898101,1760203348579,-2725.78,0.0003863,30]
[390898102,1760203348616,-500.0,0.0003863,30]
[390898103,1760203348651,-500.0,0.0003863,30]
[390898104,1760203348687,-500.0,0.0003863,30]
[390898105,1760203348723,-2264.48,0.0003863,30]
[390898106,1760203348759,-517.68,0.0003863,30]
[390898107,1760203348797,-500.0,0.0003863,30]
[390898108,1760203348832,-500.0,0.0003863,30]
[390898109,1760203348865,-1117.35,0.0003863,30]
[390898110,1760203348898,-500.0,0.0003863,30]
[390898111,1760203348930,-500.0,0.0003863,30]
[390898112,1760203348964,-527.87,0.0003863,30]
[390898113,1760203348999,-4413.52,0.0003863,30]
[390898114,1760203349034,-500.0,0.0003863,30]
[390898115,1760203349067,-500.0,0.0003863,30]
[390898116,1760203349102,-500.0,0.0003863,30]
[390898117,1760203349138,-500.0,0.0003863,30]
[390898118,1760203349175,-500.0,0.0003863,30]
[390898119,1760203349212,-495.72483885,0.0003863,30]
[390898120,1760203349250,-974.86,0.0003863,30]
[390898121,1760203349292,-1246.12,0.0003863,30]
[390898122,1760203349336,-500.0,0.0003863,30]
[390898123,1760203349377,-4126.19,0.0003863,30]
[390898124,1760203349411,-500.0,0.0003863,30]
[390898125,1760203349446,-239.64798224,0.0003863,30]
[390898126,1760203349480,-2647.96,0.0003863,30]
[390898127,1760203349512,-801.72,0.0003863,30]
[390898128,1760203349543,-503.94683085,0.0003863,30]
[390898129,1760203349576,-932.59,0.0003863,30]
[390898130,1760203349608,-500.0,0.0003863,30]
[390898131,1760203349641,-1483.17,0.0003863,30]
[390898132,1760203349675,-1420.66,0.0003863,30]
[390898133,1760203349716,-500.0,0.0003863,30]
[390898134,1760203349755,-500.0,0.0003863,30]
[390898135,1760203349790,-500.0,0.0003863,30]
[390898136,1760203349824,-2922.52,0.0003863,30]
[390898137,1760203349858,-500.0,0.0003863,30]
[390898138,1760203349894,-500.0,0.0003863,30]
[390898139,1760203349929,-762.57,0.0003863,30]
[390898140,1760203349968,-1031.4,0.0003863,30]
[390898141,1760203350004,-4439.57,0.0003863,30]
[390898142,1760203350042,-500.0,0.0003863,30]
[390898143,1760203350078,-4854.26,0.0003863,30]
[390898144,1760203350248,-500.0,0.0003863,30]
[390898145,1760203350288,-390.0,0.0003863,30]
[390898146,1760203350326,-408.58600994,0.0003863,30]
[390898147,1760203350362,-1174.64,0.0003863,30]
[390898148,1760203350398,-500.0,0.0003863,30]
[390898149,1760203350434,-500.0,0.0003863,30]
[390898150,1760203350468,-500.0,0.0003863,30]
[390898151,1760203350502,-405.5535195,0.0003863,30]
[390898152,1760203350538,-1921.82,0.0003863,30]
[390898153,1760203350573,-3479.89,0.0003863,30]
[390898154,1760203350606,-500.0,0.0003863,30]
[390898155,1760203350641,-570.86,0.0003863,30]
[390898156,1760203350677,-547.08,0.0003863,30]
[390898157,1760203350712,-500.0,0.0003863,30]
[390898158,1760203350749,-500.0,0.0003863,30]
[390898159,1760203350786,-930.15,0.0003863,30]
[390898160,1760203350820,-4824.3,0.0003863,30]
[390898161,1760203350855,-869.44,0.0003863,30]
[390898162,1760203350892,-2385.46,0.0003863,30]
[390898163,1760203350938,-500.0,0.0003863,30]
[390898164,1760203350978,-195.11789285,0.0003863,30]
[390898165,1760203351020,-2527.71,0.0003863,30]
[390898166,1760203351069,-500.0,0.0003863,30]
[390898167,1760203351110,-1157.54,0.0003863,30]
[390898168,1760203351149,-4315.19,0.0003863,30]
[390898169,1760203351186,-3193.02,0.0003863,30]
[390898170,1760203351222,-5025.52,0.0003863,30]
[390898171,1760203351257,-898.43,0.0003863,30]
[390898172,1760203351294,-1517.63,0.0003863,30]
[390898173,1760203351331,-1332.42,0.0003863,30]
[390898174,1760203351367,-1381.04,0.0003863,30]
[390898175,1760203351400,-633.28324703,0.0003863,30]
[390898176,1760203351433,-2699.87,0.0003863,30]
[390898177,1760203351467,-3347.71,0.0003863,30]
[390898178,1760203351500,-500.0,0.0003863,30]
[390898179,1760203351534,-659.03,0.0003863,30]
[390898180,1760203351566,-500.0,0.0003863,30]
[390898181,1760203351599,-500.0,0.0003863,30]
[390898182,1760203351632,-1201.02,0.0003863,30]
[390898183,1760203351666,-500.0,0.0003863,30]
[390898184,1760203351701,-500.0,0.0003863,30]
[390898185,1760203351739,-632.83,0.0003863,30]
[390898186,1760203351775,-500.0,0.0003863,30]
[390898187,1760203351810,-670.2,0.0003863,30]
[390898188,1760203351847,-500.0,0.0003863,30]
[390898189,1760203351882,-665.26,0.0003863,30]
[390898190,1760203351917,-500.0,0.0003863,30]
[390898191,1760203351954,-4180.81,0.0003863,30]
[390898192,1760203351993,-500.0,0.0003863,30]
[390898193,1760203352034,-696.77,0.0003863,30]
[390898194,1760203352076,-500.0,0.0003863,30]
[390898195,1760203352116,-500.0,0.0003863,30]
[390898196,1760203352162,-500.0,0.0003863,30]
[390898197,1760203352203,-1322.23,0.0003863,30]
[390898198,1760203352244,-500.0,0.0003863,30]
[390898199,1760203352285,-500.0,0.0003863,30]
[390898200,1760203352322,-2942.17,0.0003863,30]
[390898201,1760203352361,-500.0,0.0003863,30]
[390898202,1760203352397,-4306.52,0.0003863,30]
[390898203,1760203352431,-500.0,0.0003863,30]
[390898204,1760203352465,-1370.81,0.0003863,30]
[390898205,1760203352494,-704.35,0.0003863,30]
[390898206,1760203352523,-500.0,0.0003863,30]
[390898207,1760203352554,-500.0,0.0003863,30]
[390898208,1760203352584,-1297.77,0.0003863,30]
[390898209,1760203352614,-1923.32,0.0003863,30]
[390898210,1760203352648,-531.43638678,0.0003863,30]
[390898211,1760203352682,-500.0,0.0003863,30]
[390898212,1760203352714,-2309.13,0.0003863,30]
[390898213,1760203352745,-1161.19,0.0003863,30]
[390898214,1760203352775,-500.0,0.0003863,30]
[390898215,1760203352814,-500.0,0.0003863,30]
[390898216,1760203352845,-1947.34,0.0003863,30]
[390898217,1760203352877,-2869.07,0.0003863,30]
[390898218,1760203352910,-601.65,0.0003863,30]
[390898219,1760203352944,-500.0,0.0003863,30]
[390898220,1760203352979,-706.5,0.0003863,30]
[390898221,1760203353013,-500.0,0.0003863,30]
[390898222,1760203353049,-219.31882023,0.0003863,30]
[390898223,1760203353085,-500.0,0.0003863,30]
[390898224,1760203353121,-500.0,0.0003863,30]
[390898225,1760203353158,-5074.16,0.0003863,30]
[390898226,1760203353195,-530.69,0.0003863,30]
[390898227,1760203353229,-500.0,0.0003863,30]
[390898228,1760203353264,-630.18652951,0.0003863,30]
[390898229,1760203353305,-500.0,0.0003863,30]
[390898230,1760203353341,-500.0,0.0003863,30]
[390898231,1760203353378,-2474.66,0.0003863,30]
[390898232,1760203353412,-500.0,0.0003863,30]
[390898233,1760203353812,-500.0,0.0003863,30]
[390898234,1760203353856,-500.0,0.0003863,30]
[390898235,1760203353894,-1676.95,0.0003863,30]
[390898236,1760203353931,-561.2,0.0003863,30]
[390898237,1760203353968,-500.0,0.0003863,30]
[390898238,1760203354006,-3201.96,0.0003863,30]
[390898239,1760203354044,-500.0,0.0003863,30]
[390898240,1760203354084,-500.0,0.0003863,30]
[390898241,1760203354124,-1787.4,0.0003863,30]
[390898242,1760203354167,-500.0,0.0003863,30]
[390898243,1760203354210,-500.0,0.0003863,30]
[390898244,1760203354250,-500.0,0.0003863,30]
[390898246,1760203354292,-403.16329261,0.0003863,30]
[390898247,1760203354332,-960.36,0.0003863,30]
[390898248,1760203354371,-500.0,0.0003863,30]
[390898249,1760203354406,-500.0,0.0003863,30]
[390898250,1760203354447,-544.68,0.0003863,30]
[390898251,1760203354482,-1395.43,0.0003863,30]
[390898252,1760203354520,-3173.69,0.0003863,30]
[390898253,1760203354558,-500.0,0.0003863,30]
[390898254,1760203354594,-1553.68,0.0003863,30]
[390898255,1760203354628,-4629.88,0.0003863,30]
[390898256,1760203354660,-500.0,0.0003863,30]
[390898257,1760203354695,-731.17,0.0003863,30]
[390898258,1760203354729,-500.0,0.0003863,30]
[390898259,1760203354764,-500.0,0.0003863,30]
[390898260,1760203354799,-500.0,0.0003863,30]
[390898261,1760203354833,-713.19,0.0003863,30]
[390898262,1760203354873,-668.77,0.0003863,30]
[390898263,1760203354916,-792.93,0.0003863,30]
[390898264,1760203354952,-500.0,0.0003863,30]
[390898265,1760203354989,-1682.81,0.0003863,30]
[390898266,1760203355026,-5491.51,0.0003863,30]
[390898267,1760203355061,-625.2,0.0003863,30]
[390898268,1760203355096,-1029.39,0.0003863,30]
[390898269,1760203355130,-500.0,0.0003863,30]
[390898270,1760203355166,-682.65,0.0003863,30]
[390898271,1760203355202,-500.0,0.0003863,30]
[390898272,1760203355241,-500.0,0.0003863,30]
[390898273,1760203355280,-500.0,0.0003863,30]
[390898274,1760203355319,-1907.01,0.0003863,30]
[390898275,1760203355357,-500.0,0.0003863,30]
[390898276,1760203355391,-500.0,0.0003863,30]
[390898277,1760203355425,-1203.63,0.0003863,30]
[390898278,1760203355459,-500.0,0.0003863,30]
[390898279,1760203355494,-611.11,0.0003863,30]
[390898280,1760203355529,-2667.54,0.0003863,30]
[390898281,1760203355565,-1633.37,0.0003863,30]
[390898282,1760203355599,-3739.06,0.0003863,30]
[390898283,1760203355633,-301.72118437,0.0003863,30]
[390898284,1760203355667,-500.0,0.0003863,30]
[390898285,1760203355701,-500.0,0.0003863,30]
[390898286,1760203355736,-502.71236083,0.0003863,30]
[390898287,1760203355772,-500.0,0.0003863,30]
[390898288,1760203355809,-500.0,0.0003863,30]
[390898289,1760203355844,-500.0,0.0003863,30]
[390898290,1760203355879,-504.05033807,0.0003863,30]
[390898291,1760203355914,-500.0,0.0003863,30]
[390898292,1760203355949,-500.0,0.0003863,30]
[390898293,1760203355984,-500.0,0.0003863,30]
[390898294,1760203356020,-500.0,0.0003863,30]
[390898295,1760203356057,-500.0,0.0003863,30]
[390898296,1760203356094,-2664.9,0.0003863,30]
[390898297,1760203356132,-500.0,0.0003863,30]
[390898298,1760203356170,-500.0,0.0003863,30]
[390898299,1760203356207,-500.0,0.0003863,30]
[390898300,1760203356244,-500.0,0.0003863,30]
[390898301,1760203356283,-1947.64,0.0003863,30]
[390898302,1760203356323,-500.0,0.0003863,30]
[390898303,1760203356362,-500.0,0.0003863,30]
[390898304,1760203356398,-500.0,0.0003863,30]
[390898305,1760203356433,-500.0,0.0003863,30]
[390898306,1760203356570,-500.0,0.0003863,30]
[390898307,1760203356607,-500.0,0.0003863,30]
[390898308,1760203356641,-500.0,0.0003863,30]
[390898309,1760203356677,-3838.51,0.0003863,30]
[390898310,1760203356713,-1237.15,0.0003863,30]
[390898311,1760203356749,-1154.74,0.0003863,30]
[390898312,1760203356785,-500.0,0.0003863,30]
[390898313,1760203356821,-3315.93,0.0003863,30]
[390898314,1760203356856,-833.85,0.0003863,30]
[390898315,1760203356888,-500.0,0.0003863,30]
[390898316,1760203356923,-402.83301063,0.0003863,30]
[390898317,1760203356958,-500.0,0.0003863,30]
[390898318,1760203356993,-777.75,0.0003863,30]
[390898319,1760203357028,-500.0,0.0003863,30]
[390898320,1760203357063,-938.9,0.0003863,30]
[390898321,1760203357098,-500.0,0.0003863,30]
[390898322,1760203357132,-1973.5,0.0003863,30]
[390898323,1760203357167,-500.0,0.0003863,30]
[390898324,1760203357202,-1776.03,0.0003863,30]
[390898325,1760203357236,-500.99070507,0.0003863,30]
[390898326,1760203357268,-500.0,0.0003863,30]
[390898327,1760203357309,-3123.85,0.0003863,30]
[390898328,1760203357344,-500.0,0.0003863,30]
[390898329,1760203357380,-1790.39,0.0003863,30]